{"text_format":"3","workbook":"xlsx","n_sheets":2,"sheets":["ΕΝΑΡΞΗ","ΕΤΗΣΙΟ ΦΥΛΛΟ ΚΑΤΑΝΟΜΗΣ ΧΡΟΝΟΥ"],"not_rendered":{"defined_names":2},"read":"whole","date_system":"1900"}

{"sheet":"ΕΝΑΡΞΗ","index":0,"n_rows":8,"n_cols":2,"rows_kept":8}
[null,"ΠΛΗΡΟΦΟΡΙΕΣ ΓΙΑ ΑΥΤΟ ΤΟ ΠΡΟΤΥΠΟ"]
[null,"Παρακολουθήστε τις ώρες σας σε ημερήσια, εβδομαδιαία, μηνιαία και ετήσια βάση με αυτή την κάρτα χρόνου υπαλλήλου."]
[null,"Συμπληρώστε βασικές πληροφορίες, όπως όνομα υπαλλήλου, όνομα προϊστάμενου, διεύθυνση ηλεκτρονικού ταχυδρομείου και αριθμός τηλεφώνου. "]
[null,"Προσθέστε τις ώρες σας στον πίνακα κάθε μήνα. Καταχωρήστε τις κανονικές ώρες και τις ώρες υπερωριών σε ξεχωριστές στήλες για κάθε εργάσιμη ημέρα κάθε εβδομάδας. "]
[null,"Οι συνολικές ώρες εργασίας, κανονικές ώρες και ώρες υπερωριών υπολογίζονται αυτόματα. "]
[null,"Σημειώσεις:"]
[null,"Στη στήλη A στο φύλλο εργασίας \"ΕΤΗΣΙΟ ΦΥΛΛΟ ΚΑΤΑΝΟΜΗΣ ΧΡΟΝΟΥ\" παρέχονται πρόσθετες οδηγίες. Αυτό το κείμενο είναι κρυφό σκόπιμα. Για να καταργήσετε το κείμενο, επιλέξτε τη στήλη A και, στη συνέχεια, πατήστε το πλήκτρο DELETE. Για να εμφανίσετε το κείμενο, επιλέξτε τη στήλη A και, στη συνέχεια, αλλάξτε το χρώμα γραμματοσειράς. "]
[null,"Για να μάθετε περισσότερα για τους πίνακες, πατήστε το πλήκτρο SHIFT και, στη συνέχεια, F10 μέσα σε έναν πίνακα, επιλέξτε \"ΠΙΝΑΚΑΣ\" και, στη συνέχεια, επιλέξτε \"ΕΝΑΛΛΑΚΤΙΚΟ ΚΕΙΜΕΝΟ\"."]

{"sheet":"ΕΤΗΣΙΟ ΦΥΛΛΟ ΚΑΤΑΝΟΜΗΣ ΧΡΟΝΟΥ","index":1,"n_rows":132,"n_cols":15,"rows_kept":132,"merged":[[0,1,0,2],[0,4,0,14],[10,6,10,7],[21,6,21,7],[32,6,32,7],[33,4,33,14],[43,6,43,7],[54,6,54,7],[65,6,65,7],[66,4,66,14],[76,6,76,7],[87,6,87,7],[98,6,98,7],[99,4,99,14],[109,6,109,7],[120,6,120,7],[131,6,131,7]]}
["Δημιουργήστε ένα ημερήσιο, εβδομαδιαίο, μηνιαίο ή ετήσιο φύλλο κατανομής χρόνου υπαλλήλων σε αυτό το φύλλο εργασίας. \nΣε διάφορα κελιά σε αυτή τη στήλη βρίσκονται χρήσιμες οδηγίες για τον τρόπο χρήσης αυτού του βιβλίου εργασίας. Πατήστε το κάτω βέλος για να ξεκινήσετε.\nΟ τίτλος αυτού του φύλλου εργασίας βρίσκεται στο κελί στα δεξιά και η επικεφαλίδα του τριμήνου Ιανουάριος, Φεβρουάριος, Μάρτιος βρίσκεται στο κελί E1.","ΚΑΡΤΑ ΧΡΟΝΟΥ \nΥΠΑΛΛΗΛΟΥ",null,null,"Ιανουάριος, Φεβρουάριος, Μάρτιος      Καρτα χρονου υπαλληλου: Ημερήσια, εβδομαδιαία, μηνιαία, ετήσια"]
["Εισαγάγετε το όνομα υπαλλήλου στο κελί C2 καθώς και τις τακτικές ώρες και τις ώρες υπερωριών στον πίνακα Ιανουάριος που ξεκινά στο κελί E2.","Όνομα υπαλλήλου:",null,null,"Ιανουάριος","Εβδομάδα 1","Υπερωρίες","Εβδομάδα 2","Υπερωρίες  ","Εβδομάδα 3","Υπερωρίες   ","Εβδομάδα 4","Υπερωρίες    ","Εβδομάδα 5","Υπερωρίες     "]
["Εισαγάγετε το όνομα προϊστάμενος στο κελί C3.","Προϊστάμενος:",null,null,"Δευτέρα",{"v":8,"d":"8.0"}]
["Εισαγάγετε τη διεύθυνση ηλεκτρονικού ταχυδρομείου στο κελί C4.","Διεύθυνση ηλεκτρονικού ταχυδρομείου:",null,null,"Τρίτη",{"v":8,"d":"8.0"},{"v":2,"d":"2.0"}]
["Εισαγάγετε τον αριθμό τηλέφωνο στο κελί C5. Η επόμενη οδηγία βρίσκεται στο κελί A9.","Τηλέφωνο:",null,null,"Τετάρτη"]
[{"$nulls":4},"Πέμπτη"]
[{"$nulls":4},"Παρασκευή"]
[{"$nulls":4},"Σάββατο"]
["Οι ετήσιες συνολικές κανονικές ώρες υπολογίζονται αυτόματα στο κελί C9.","Κανονικές ώρες:",{"$f":"ΚανονικέςΏρες","v":31},null,"Κυριακή"]
["Οι ετήσιες συνολικές ώρες υπερωριών υπολογίζονται αυτόματα στο κελί C10.","Ώρες υπερωριών:",{"$f":"Ώρες_υπερωριών","v":4},null,"Σύνολο εβδομαδιαίων ωρών",{"$f":"SUM(F3:F9)","v":{"v":16,"d":"16.0"}},{"v":2,"d":"2.0"},{"v":0,"d":"0.0"},{"v":0,"d":"0.0"},{"v":0,"d":"0.0"},{"v":0,"d":"0.0"},{"v":0,"d":"0.0"},{"v":0,"d":"0.0"},{"v":0,"d":"0.0"},{"v":0,"d":"0.0"}]
["Το άθροισμα των ετήσιων συνολικών ωρών υπολογίζεται αυτόματα στο κελί C11. Οι συνολικές κανονικές ώρες Ιανουαρίου στο κελί F11 και οι συνολικές ώρες υπερωριών Ιανουαρίου στο κελί I11 υπολογίζονται αυτόματα. Η επόμενη οδηγία βρίσκεται στο κελί A13.","Σύνολο",{"$f":"ΚανονικέςΏρες+Ώρες_υπερωριών","v":35},null,{"$f":"LEFT(Ιανουάριος[[#Headers],[Ιανουάριος]],3)&\". \"&\" σύνολο: Κανονικές ώρες\"","v":"Ιαν.  σύνολο: Κανονικές ώρες"},{"$f":"SUM(Ιανουάριος[Εβδομάδα 1],Ιανουάριος[Εβδομάδα 2],Ιανουάριος[Εβδομάδα 3],Ιανουάριος[Εβδομάδα 4],Ιανουάριος[Εβδομάδα 5])","v":{"v":16,"d":"16.0"}},{"$f":"LEFT(Ιανουάριος[[#Headers],[Ιανουάριος]],3)&\". \"&\" σύνολο: Υπερωρίες\"","v":"Ιαν.  σύνολο: Υπερωρίες"},null,{"$f":"SUM(Ιανουάριος[Υπερωρίες],Ιανουάριος[[Υπερωρίες  ]],Ιανουάριος[[Υπερωρίες   ]],Ιανουάριος[[Υπερωρίες    ]],Ιανουάριος[[Υπερωρίες     ]])","v":{"v":2,"d":"2.0"}}]
[]
["Εισαγάγετε τις κανονικές ώρες και τις ώρες υπερωριών στον πίνακα του Φεβρουάριος που ξεκινά στο κελί E13. Η επόμενη οδηγία βρίσκεται στο κελί A22.",{"$nulls":3},"Φεβρουάριος","Εβδομάδα 1","Υπερωρίες","Εβδομάδα 2","Υπερωρίες  ","Εβδομάδα 3","Υπερωρίες   ","Εβδομάδα 4","Υπερωρίες    ","Εβδομάδα 5","Υπερωρίες     "]
[{"$nulls":4},"Δευτέρα",{"v":8,"d":"8.0"}]
[{"$nulls":4},"Τρίτη",{"v":7,"d":"7.0"},{"v":2,"d":"2.0"}]
[{"$nulls":4},"Τετάρτη"]
[{"$nulls":4},"Πέμπτη"]
[{"$nulls":4},"Παρασκευή"]
[{"$nulls":4},"Σάββατο"]
[{"$nulls":4},"Κυριακή"]
[{"$nulls":4},"Σύνολο εβδομαδιαίων ωρών",{"$f":"SUM(F14:F20)","v":{"v":15,"d":"15.0"}},{"v":2,"d":"2.0"},{"v":0,"d":"0.0"},{"v":0,"d":"0.0"},{"v":0,"d":"0.0"},{"v":0,"d":"0.0"},{"v":0,"d":"0.0"},{"v":0,"d":"0.0"},{"v":0,"d":"0.0"},{"v":0,"d":"0.0"}]
["Οι συνολικές κανονικές ώρες Φεβρουαρίου στο κελί F22 και οι συνολικές ώρες υπερωριών Φεβρουαρίου στο κελί I22 υπολογίζονται αυτόματα. Η επόμενη οδηγία βρίσκεται στο κελί A24.",{"$nulls":3},{"$f":"LEFT(Φεβρουάριος[[#Headers],[Φεβρουάριος]],3)&\". \"&\" σύνολο: Κανονικές ώρες\"","v":"Φεβ.  σύνολο: Κανονικές ώρες"},{"$f":"SUM(Φεβρουάριος[Εβδομάδα 1],Φεβρουάριος[Εβδομάδα 2],Φεβρουάριος[Εβδομάδα 3],Φεβρουάριος[Εβδομάδα 4],Φεβρουάριος[Εβδομάδα 5])","v":{"v":15,"d":"15.0"}},{"$f":"LEFT(Φεβρουάριος[[#Headers],[Φεβρουάριος]],3)&\". \"&\" σύνολο: Υπερωρίες\"","v":"Φεβ.  σύνολο: Υπερωρίες"},null,{"$f":"SUM(Φεβρουάριος[Υπερωρίες],Φεβρουάριος[[Υπερωρίες  ]],Φεβρουάριος[[Υπερωρίες   ]],Φεβρουάριος[[Υπερωρίες    ]],Φεβρουάριος[[Υπερωρίες     ]])","v":{"v":2,"d":"2.0"}}]
[]
["Εισαγάγετε τις κανονικές ώρες και τις ώρες υπερωριών στον πίνακα του Μάρτιος που ξεκινά στο κελί E24. Η επόμενη οδηγία βρίσκεται στο κελί A33.",{"$nulls":3},"Μάρτιος","Εβδομάδα 1","Υπερωρίες","Εβδομάδα 2","Υπερωρίες ","Εβδομάδα 3","Υπερωρίες  ","Εβδομάδα 4","Υπερωρίες    ","Εβδομάδα 5","Υπερωρίες     "]
[{"$nulls":4},"Δευτέρα"]
[{"$nulls":4},"Τρίτη"]
[{"$nulls":4},"Τετάρτη"]
[{"$nulls":4},"Πέμπτη"]
[{"$nulls":4},"Παρασκευή"]
[{"$nulls":4},"Σάββατο"]
[{"$nulls":4},"Κυριακή"]
[{"$nulls":4},"Σύνολο εβδομαδιαίων ωρών",{"$f":"SUM(F25:F31)","v":{"v":0,"d":"0.0"}},{"v":0,"d":"0.0"},{"v":0,"d":"0.0"},{"v":0,"d":"0.0"},{"v":0,"d":"0.0"},{"v":0,"d":"0.0"},{"v":0,"d":"0.0"},{"v":0,"d":"0.0"},{"v":0,"d":"0.0"},{"v":0,"d":"0.0"}]
["Οι συνολικές κανονικές ώρες Μαρτίου στο κελί F33 και οι συνολικές ώρες υπερωριών Μαρτίου στο κελί I33 υπολογίζονται αυτόματα.",{"$nulls":3},{"$f":"LEFT(Μάρτιος[[#Headers],[Μάρτιος]],3)&\".\"&\" σύνολο: Κανονικές ώρες\"","v":"Μάρ. σύνολο: Κανονικές ώρες"},{"$f":"SUM(Μάρτιος[Εβδομάδα 1],Μάρτιος[Εβδομάδα 2],Μάρτιος[Εβδομάδα 3],Μάρτιος[Εβδομάδα 4],Μάρτιος[Εβδομάδα 5])","v":{"v":0,"d":"0.0"}},{"$f":"LEFT(Μάρτιος[[#Headers],[Μάρτιος]],3)&\".\"&\" σύνολο: Υπερωρίες\"","v":"Μάρ. σύνολο: Υπερωρίες"},null,{"$f":"SUM(Μάρτιος[Υπερωρίες],Μάρτιος[[Υπερωρίες ]],Μάρτιος[[Υπερωρίες  ]],Μάρτιος[[Υπερωρίες    ]],Μάρτιος[[Υπερωρίες     ]])","v":{"v":0,"d":"0.0"}}]
["Η επικεφαλίδα του δεύτερου τριμήνου Απριλίου, Μαΐου, Ιουνίου βρίσκεται στο κελί E34. ",{"$nulls":3},"Απρίλιος, Μάιος, Ιούνιος      Καρτα χρονου υπαλληλου: Ημερήσια, εβδομαδιαία, μηνιαία, ετήσια"]
["Εισαγάγετε τις κανονικές ώρες και τις ώρες υπερωριών για τον Απρίλιος στον πίνακα που ξεκινά στο κελί E35. Η επόμενη οδηγία βρίσκεται στο κελί A44.",{"$nulls":3},"Απρίλιος","Εβδομάδα 1","Υπερωρίες","Εβδομάδα 2","Υπερωρίες  ","Εβδομάδα 3","Υπερωρίες   ","Εβδομάδα 4","Υπερωρίες    ","Εβδομάδα 5","Υπερωρίες     "]
[{"$nulls":4},"Δευτέρα"]
[{"$nulls":4},"Τρίτη"]
[{"$nulls":4},"Τετάρτη"]
[{"$nulls":4},"Πέμπτη"]
[{"$nulls":4},"Παρασκευή"]
[{"$nulls":4},"Σάββατο"]
[{"$nulls":4},"Κυριακή"]
[{"$nulls":4},"Σύνολο εβδομαδιαίων ωρών",{"$f":"SUM(F36:F42)","v":{"v":0,"d":"0.0"}},{"v":0,"d":"0.0"},{"v":0,"d":"0.0"},{"v":0,"d":"0.0"},{"v":0,"d":"0.0"},{"v":0,"d":"0.0"},{"v":0,"d":"0.0"},{"v":0,"d":"0.0"},{"v":0,"d":"0.0"},{"v":0,"d":"0.0"}]
["Οι συνολικές κανονικές ώρες Απριλίου στο κελί F44 και οι συνολικές ώρες υπερωριών Απριλίου στο κελί I44 υπολογίζονται αυτόματα. Η επόμενη οδηγία βρίσκεται στο κελί A46.",{"$nulls":3},{"$f":"LEFT(Απρίλιος[[#Headers],[Απρίλιος]],3)&\".\"&\" σύνολο: Κανονικές ώρες\"","v":"Απρ. σύνολο: Κανονικές ώρες"},{"$f":"SUM(Απρίλιος[Εβδομάδα 1],Απρίλιος[Εβδομάδα 2],Απρίλιος[Εβδομάδα 3],Απρίλιος[Εβδομάδα 4],Απρίλιος[Εβδομάδα 5])","v":{"v":0,"d":"0.0"}},{"$f":"LEFT(Απρίλιος[[#Headers],[Απρίλιος]],3)&\".\"&\" σύνολο: Υπερωρίες\"","v":"Απρ. σύνολο: Υπερωρίες"},null,{"$f":"SUM(Απρίλιος[Υπερωρίες],Απρίλιος[[Υπερωρίες  ]],Απρίλιος[[Υπερωρίες   ]],Απρίλιος[[Υπερωρίες    ]],Απρίλιος[[Υπερωρίες     ]])","v":{"v":0,"d":"0.0"}}]
[]
["Εισαγάγετε τις κανονικές ώρες και τις ώρες υπερωριών για τον Μάιος στον πίνακα που ξεκινά στο κελί E46. Η επόμενη οδηγία βρίσκεται στο κελί A55.",{"$nulls":3},"Μάιος","Εβδομάδα 1","Υπερωρίες","Εβδομάδα 2","Υπερωρίες  ","Εβδομάδα 3","Υπερωρίες   ","Εβδομάδα 4","Υπερωρίες    ","Εβδομάδα 5","Υπερωρίες     "]
[{"$nulls":4},"Δευτέρα"]
[{"$nulls":4},"Τρίτη"]
[{"$nulls":4},"Τετάρτη"]
[{"$nulls":4},"Πέμπτη"]
[{"$nulls":4},"Παρασκευή"]
[{"$nulls":4},"Σάββατο"]
[{"$nulls":4},"Κυριακή"]
[{"$nulls":4},"Σύνολο εβδομαδιαίων ωρών",{"$f":"SUM(F47:F53)","v":{"v":0,"d":"0.0"}},{"v":0,"d":"0.0"},{"v":0,"d":"0.0"},{"v":0,"d":"0.0"},{"v":0,"d":"0.0"},{"v":0,"d":"0.0"},{"v":0,"d":"0.0"},{"v":0,"d":"0.0"},{"v":0,"d":"0.0"},{"v":0,"d":"0.0"}]
["Οι συνολικές κανονικές ώρες Μαΐου στο κελί F55 και οι συνολικές ώρες υπερωριών Μαΐου στο κελί I55 υπολογίζονται αυτόματα. Η επόμενη οδηγία βρίσκεται στο κελί A57.",{"$nulls":3},{"$f":"LEFT(Μάιος[[#Headers],[Μάιος]],3)&\".\"&\" σύνολο: Κανονικές ώρες\"","v":"Μάι. σύνολο: Κανονικές ώρες"},{"$f":"SUM(Μάιος[Εβδομάδα 1],Μάιος[Εβδομάδα 2],Μάιος[Εβδομάδα 3],Μάιος[Εβδομάδα 4],Μάιος[Εβδομάδα 5])","v":{"v":0,"d":"0.0"}},{"$f":"LEFT(Μάιος[[#Headers],[Μάιος]],3)&\".\"&\" σύνολο: Υπερωρίες\"","v":"Μάι. σύνολο: Υπερωρίες"},null,{"$f":"SUM(Μάιος[Υπερωρίες],Μάιος[[Υπερωρίες  ]],Μάιος[[Υπερωρίες   ]],Μάιος[[Υπερωρίες    ]],Μάιος[[Υπερωρίες     ]])","v":{"v":0,"d":"0.0"}}]
[{"$nulls":4},"\\"]
["Εισαγάγετε τις κανονικές ώρες και τις ώρες υπερωριών για τον Ιούνιος στον πίνακα που ξεκινά στο κελί E57. Η επόμενη οδηγία βρίσκεται στο κελί A66.",{"$nulls":3},"Ιούνιος","Εβδομάδα 1","Υπερωρίες","Εβδομάδα 2","Υπερωρίες  ","Εβδομάδα 3","Υπερωρίες   ","Εβδομάδα 4","Υπερωρίες    ","Εβδομάδα 5","Υπερωρίες     "]
[{"$nulls":4},"Δευτέρα"]
[{"$nulls":4},"Τρίτη"]
[{"$nulls":4},"Τετάρτη"]
[{"$nulls":4},"Πέμπτη"]
[{"$nulls":4},"Παρασκευή"]
[{"$nulls":4},"Σάββατο"]
[{"$nulls":4},"Κυριακή"]
[{"$nulls":4},"Σύνολο εβδομαδιαίων ωρών",{"$f":"SUM(F58:F64)","v":{"v":0,"d":"0.0"}},{"v":0,"d":"0.0"},{"v":0,"d":"0.0"},{"v":0,"d":"0.0"},{"v":0,"d":"0.0"},{"v":0,"d":"0.0"},{"v":0,"d":"0.0"},{"v":0,"d":"0.0"},{"v":0,"d":"0.0"},{"v":0,"d":"0.0"}]
["Οι συνολικές κανονικές ώρες Ιουνίου στο κελί F66 και οι συνολικές ώρες υπερωριών Ιουνίου στο κελί I66 υπολογίζονται αυτόματα.",{"$nulls":3},{"$f":"LEFT(Ιούνιος[[#Headers],[Ιούνιος]],3)&\".\"&\" σύνολο: Κανονικές ώρες\"","v":"Ιού. σύνολο: Κανονικές ώρες"},{"$f":"SUM(Ιούνιος[Εβδομάδα 1],Ιούνιος[Εβδομάδα 2],Ιούνιος[Εβδομάδα 3],Ιούνιος[Εβδομάδα 4],Ιούνιος[Εβδομάδα 5])","v":{"v":0,"d":"0.0"}},{"$f":"LEFT(Ιούνιος[[#Headers],[Ιούνιος]],3)&\".\"&\" σύνολο: Υπερωρίες\"","v":"Ιού. σύνολο: Υπερωρίες"},null,{"$f":"SUM(Ιούνιος[Υπερωρίες],Ιούνιος[[Υπερωρίες  ]],Ιούνιος[[Υπερωρίες   ]],Ιούνιος[[Υπερωρίες    ]],Ιούνιος[[Υπερωρίες     ]])","v":{"v":0,"d":"0.0"}}]
["Η επικεφαλίδα του τρίτου τριμήνου Ιουλίου, Αυγούστου, Σεπτεμβρίου βρίσκεται στο κελί E67. ",{"$nulls":3},"Ιούλιος, Αύγουστος, Σεπτέμβριος      Καρτα χρονου υπαλληλου: Ημερήσια, εβδομαδιαία, μηνιαία, ετήσια"]
["Εισαγάγετε τις κανονικές ώρες και τις ώρες υπερωριών για τον Ιούλιος στον πίνακα που ξεκινά στο κελί E68. Η επόμενη οδηγία βρίσκεται στο κελί A77.",{"$nulls":3},"Ιούλιος","Εβδομάδα 1","Υπερωρίες","Εβδομάδα 2","Υπερωρίες ","Εβδομάδα 3","Υπερωρίες  ","Εβδομάδα 4","Υπερωρίες   ","Εβδομάδα 5","Υπερωρίες     "]
[{"$nulls":4},"Δευτέρα"]
[{"$nulls":4},"Τρίτη"]
[{"$nulls":4},"Τετάρτη"]
[{"$nulls":4},"Πέμπτη"]
[{"$nulls":4},"Παρασκευή"]
[{"$nulls":4},"Σάββατο"]
[{"$nulls":4},"Κυριακή"]
[{"$nulls":4},"Σύνολο εβδομαδιαίων ωρών",{"$f":"SUM(F69:F75)","v":{"v":0,"d":"0.0"}},{"v":0,"d":"0.0"},{"v":0,"d":"0.0"},{"v":0,"d":"0.0"},{"v":0,"d":"0.0"},{"v":0,"d":"0.0"},{"v":0,"d":"0.0"},{"v":0,"d":"0.0"},{"v":0,"d":"0.0"},{"v":0,"d":"0.0"}]
["Οι συνολικές κανονικές ώρες Ιουλίου στο κελί F77 και οι συνολικές ώρες υπερωριών Ιουλίου στο κελί I77 υπολογίζονται αυτόματα. Η επόμενη οδηγία βρίσκεται στο κελί A79.",{"$nulls":3},{"$f":"LEFT(Ιούλιος[[#Headers],[Ιούλιος]],3)&\".\"&\" σύνολο: Κανονικές ώρες\"","v":"Ιού. σύνολο: Κανονικές ώρες"},{"$f":"SUM(Ιούλιος[Εβδομάδα 1],Ιούλιος[Εβδομάδα 2],Ιούλιος[Εβδομάδα 3],Ιούλιος[Εβδομάδα 4],Ιούλιος[Εβδομάδα 5])","v":{"v":0,"d":"0.0"}},{"$f":"LEFT(Ιούλιος[[#Headers],[Ιούλιος]],3)&\".\"&\" σύνολο: Υπερωρίες\"","v":"Ιού. σύνολο: Υπερωρίες"},null,{"$f":"SUM(Ιούλιος[Υπερωρίες],Ιούλιος[[Υπερωρίες ]],Ιούλιος[[Υπερωρίες  ]],Ιούλιος[[Υπερωρίες   ]],Ιούλιος[[Υπερωρίες     ]])","v":{"v":0,"d":"0.0"}}]
[]
["Εισαγάγετε τις κανονικές ώρες και τις ώρες υπερωριών για τον Αύγουστος στον πίνακα που ξεκινά στο κελί E79. Η επόμενη οδηγία βρίσκεται στο κελί A88.",{"$nulls":3},"Αύγουστος","Εβδομάδα 1","Υπερωρίες","Εβδομάδα 2","Υπερωρίες ","Εβδομάδα 3","Υπερωρίες   ","Εβδομάδα 4","Υπερωρίες  ","Εβδομάδα 5","Υπερωρίες    "]
[{"$nulls":4},"Δευτέρα"]
[{"$nulls":4},"Τρίτη"]
[{"$nulls":4},"Τετάρτη"]
[{"$nulls":4},"Πέμπτη"]
[{"$nulls":4},"Παρασκευή"]
[{"$nulls":4},"Σάββατο"]
[{"$nulls":4},"Κυριακή"]
[{"$nulls":4},"Σύνολο εβδομαδιαίων ωρών",{"$f":"SUBTOTAL(109,Αύγουστος[Εβδομάδα 1])","v":{"v":0,"d":"0.0"}},{"$f":"SUBTOTAL(109,Αύγουστος[Υπερωρίες])","v":{"v":0,"d":"0.0"}},{"$f":"SUBTOTAL(109,Αύγουστος[Εβδομάδα 2])","v":{"v":0,"d":"0.0"}},{"$f":"SUBTOTAL(109,Αύγουστος[[Υπερωρίες ]])","v":{"v":0,"d":"0.0"}},{"$f":"SUBTOTAL(109,Αύγουστος[Εβδομάδα 3])","v":{"v":0,"d":"0.0"}},{"$f":"SUBTOTAL(109,Αύγουστος[[Υπερωρίες   ]])","v":{"v":0,"d":"0.0"}},{"$f":"SUBTOTAL(109,Αύγουστος[Εβδομάδα 4])","v":{"v":0,"d":"0.0"}},{"$f":"SUBTOTAL(109,Αύγουστος[[Υπερωρίες  ]])","v":{"v":0,"d":"0.0"}},{"$f":"SUBTOTAL(109,Αύγουστος[Εβδομάδα 5])","v":{"v":0,"d":"0.0"}},{"$f":"SUBTOTAL(109,Αύγουστος[[Υπερωρίες    ]])","v":{"v":0,"d":"0.0"}}]
["Οι συνολικές κανονικές ώρες Αυγούστου στο κελί F88 και οι συνολικές ώρες υπερωριών Αυγούστου στο κελί I88 υπολογίζονται αυτόματα. Η επόμενη οδηγία βρίσκεται στο κελί A90.",{"$nulls":3},{"$f":"LEFT(Αύγουστος[[#Headers],[Αύγουστος]],3)&\".\"&\" σύνολο: Κανονικές ώρες\"","v":"Αύγ. σύνολο: Κανονικές ώρες"},{"$f":"SUM(Αύγουστος[Εβδομάδα 1],Αύγουστος[Εβδομάδα 2],Αύγουστος[Εβδομάδα 3],Αύγουστος[Εβδομάδα 4],Αύγουστος[Εβδομάδα 5])","v":{"v":0,"d":"0.0"}},{"$f":"LEFT(Αύγουστος[[#Headers],[Αύγουστος]],3)&\".\"&\" σύνολο: Υπερωρίες\"","v":"Αύγ. σύνολο: Υπερωρίες"},null,{"$f":"SUM(Αύγουστος[Υπερωρίες],Αύγουστος[[Υπερωρίες ]],Αύγουστος[[Υπερωρίες   ]],Αύγουστος[[Υπερωρίες  ]],Αύγουστος[[Υπερωρίες    ]])","v":{"v":0,"d":"0.0"}}]
[]
["Εισαγάγετε τις κανονικές ώρες και τις ώρες υπερωριών για τον Σεπτέμβριος στον πίνακα που ξεκινά στο κελί E90. Η επόμενη οδηγία βρίσκεται στο κελί A99.",{"$nulls":3},"Σεπτέμβριος","Εβδομάδα 1","Υπερωρίες","Εβδομάδα 2","Υπερωρίες ","Εβδομάδα 3","Υπερωρίες  ","Εβδομάδα 4","Υπερωρίες   ","Εβδομάδα 5","Υπερωρίες    "]
[{"$nulls":4},"Δευτέρα"]
[{"$nulls":4},"Τρίτη"]
[{"$nulls":4},"Τετάρτη"]
[{"$nulls":4},"Πέμπτη"]
[{"$nulls":4},"Παρασκευή"]
[{"$nulls":4},"Σάββατο"]
[{"$nulls":4},"Κυριακή"]
[{"$nulls":4},"Σύνολο εβδομαδιαίων ωρών",{"$f":"SUBTOTAL(109,Σεπτέμβριος[Εβδομάδα 1])","v":{"v":0,"d":"0.0"}},{"$f":"SUBTOTAL(109,Σεπτέμβριος[Υπερωρίες])","v":{"v":0,"d":"0.0"}},{"$f":"SUBTOTAL(109,Σεπτέμβριος[Εβδομάδα 2])","v":{"v":0,"d":"0.0"}},{"$f":"SUBTOTAL(109,Σεπτέμβριος[[Υπερωρίες ]])","v":{"v":0,"d":"0.0"}},{"$f":"SUBTOTAL(109,Σεπτέμβριος[Εβδομάδα 3])","v":{"v":0,"d":"0.0"}},{"$f":"SUBTOTAL(109,Σεπτέμβριος[[Υπερωρίες  ]])","v":{"v":0,"d":"0.0"}},{"$f":"SUBTOTAL(109,Σεπτέμβριος[Εβδομάδα 4])","v":{"v":0,"d":"0.0"}},{"$f":"SUBTOTAL(109,Σεπτέμβριος[[Υπερωρίες   ]])","v":{"v":0,"d":"0.0"}},{"$f":"SUBTOTAL(109,Σεπτέμβριος[Εβδομάδα 5])","v":{"v":0,"d":"0.0"}},{"$f":"SUBTOTAL(109,Σεπτέμβριος[[Υπερωρίες    ]])","v":{"v":0,"d":"0.0"}}]
["Οι συνολικές κανονικές ώρες Σεπτεμβρίου στο κελί F99 και οι συνολικές ώρες υπερωριών Σεπτεμβρίου στο κελί I99 υπολογίζονται αυτόματα.",{"$nulls":3},{"$f":"LEFT(Σεπτέμβριος[[#Headers],[Σεπτέμβριος]],3)&\".\"&\" σύνολο: Κανονικές ώρες\"","v":"Σεπ. σύνολο: Κανονικές ώρες"},{"$f":"SUM(Σεπτέμβριος[Εβδομάδα 1],Σεπτέμβριος[Εβδομάδα 2],Σεπτέμβριος[Εβδομάδα 3],Σεπτέμβριος[Εβδομάδα 4],Σεπτέμβριος[Εβδομάδα 5])","v":{"v":0,"d":"0.0"}},{"$f":"LEFT(Σεπτέμβριος[[#Headers],[Σεπτέμβριος]],3)&\".\"&\" σύνολο: Υπερωρίες\"","v":"Σεπ. σύνολο: Υπερωρίες"},null,{"$f":"SUM(Σεπτέμβριος[Υπερωρίες],Σεπτέμβριος[[Υπερωρίες ]],Σεπτέμβριος[[Υπερωρίες  ]],Σεπτέμβριος[[Υπερωρίες   ]],Σεπτέμβριος[[Υπερωρίες    ]])","v":{"v":0,"d":"0.0"}}]
["Η επικεφαλίδα του τέταρτου τριμήνου Οκτωβρίου, Νοεμβρίου, Δεκεμβρίου βρίσκεται στο κελί E100. ",{"$nulls":3},"Οκτώβριος, Νοέμβριος, Δεκέμβριος      Καρτα χρονου υπαλληλου: Ημερήσια, εβδομαδιαία, μηνιαία, ετήσια"]
["Εισαγάγετε τις κανονικές ώρες και τις ώρες υπερωριών για τον Οκτώβριος στον πίνακα που ξεκινά στο κελί E101. Η επόμενη οδηγία βρίσκεται στο κελί A110.",{"$nulls":3},"Οκτώβριος","Εβδομάδα 1","Υπερωρίες","Εβδομάδα 2","Υπερωρίες ","Εβδομάδα 3","Υπερωρίες  ","Εβδομάδα 4","Υπερωρίες   ","Εβδομάδα 5","Υπερωρίες    "]
[{"$nulls":4},"Δευτέρα"]
[{"$nulls":4},"Τρίτη"]
[{"$nulls":4},"Τετάρτη"]
[{"$nulls":4},"Πέμπτη"]
[{"$nulls":4},"Παρασκευή"]
[{"$nulls":4},"Σάββατο"]
[{"$nulls":4},"Κυριακή"]
[{"$nulls":4},"Σύνολο εβδομαδιαίων ωρών",{"$f":"SUBTOTAL(109,Οκτώβριος[Εβδομάδα 1])","v":{"v":0,"d":"0.0"}},{"$f":"SUBTOTAL(109,Οκτώβριος[Υπερωρίες])","v":{"v":0,"d":"0.0"}},{"$f":"SUBTOTAL(109,Οκτώβριος[Εβδομάδα 2])","v":{"v":0,"d":"0.0"}},{"$f":"SUBTOTAL(109,Οκτώβριος[[Υπερωρίες ]])","v":{"v":0,"d":"0.0"}},{"$f":"SUBTOTAL(109,Οκτώβριος[Εβδομάδα 3])","v":{"v":0,"d":"0.0"}},{"$f":"SUBTOTAL(109,Οκτώβριος[[Υπερωρίες  ]])","v":{"v":0,"d":"0.0"}},{"$f":"SUBTOTAL(109,Οκτώβριος[Εβδομάδα 4])","v":{"v":0,"d":"0.0"}},{"$f":"SUBTOTAL(109,Οκτώβριος[[Υπερωρίες   ]])","v":{"v":0,"d":"0.0"}},{"$f":"SUBTOTAL(109,Οκτώβριος[Εβδομάδα 5])","v":{"v":0,"d":"0.0"}},{"$f":"SUBTOTAL(109,Οκτώβριος[[Υπερωρίες    ]])","v":{"v":0,"d":"0.0"}}]
["Οι συνολικές κανονικές ώρες Οκτωβρίου στο κελί F110 και οι συνολικές ώρες υπερωριών Οκτωβρίου στο κελί I110 υπολογίζονται αυτόματα. Η επόμενη οδηγία βρίσκεται στο κελί A112.",{"$nulls":3},{"$f":"LEFT(Οκτώβριος[[#Headers],[Οκτώβριος]],3)&\".\"&\" σύνολο: Κανονικές ώρες\"","v":"Οκτ. σύνολο: Κανονικές ώρες"},{"$f":"SUM(Οκτώβριος[Εβδομάδα 1],Οκτώβριος[Εβδομάδα 2],Οκτώβριος[Εβδομάδα 3],Οκτώβριος[Εβδομάδα 4],Οκτώβριος[Εβδομάδα 5])","v":{"v":0,"d":"0.0"}},{"$f":"LEFT(Οκτώβριος[[#Headers],[Οκτώβριος]],3)&\".\"&\" σύνολο: Υπερωρίες\"","v":"Οκτ. σύνολο: Υπερωρίες"},null,{"$f":"SUM(Οκτώβριος[Υπερωρίες],Οκτώβριος[[Υπερωρίες ]],Οκτώβριος[[Υπερωρίες  ]],Οκτώβριος[[Υπερωρίες   ]],Οκτώβριος[[Υπερωρίες    ]])","v":{"v":0,"d":"0.0"}}]
[]
["Εισαγάγετε τις κανονικές ώρες και τις ώρες υπερωριών για τον Νοέμβριος στον πίνακα που ξεκινά στο κελί E112. Η επόμενη οδηγία βρίσκεται στο κελί A121.",{"$nulls":3},"Νοέμβριος","Εβδομάδα 1","Υπερωρίες","Εβδομάδα 2","Υπερωρίες ","Εβδομάδα 3","Υπερωρίες  ","Εβδομάδα 4","Υπερωρίες    ","Εβδομάδα 5","Υπερωρίες     "]
[{"$nulls":4},"Δευτέρα"]
[{"$nulls":4},"Τρίτη"]
[{"$nulls":4},"Τετάρτη"]
[{"$nulls":4},"Πέμπτη"]
[{"$nulls":4},"Παρασκευή"]
[{"$nulls":4},"Σάββατο"]
[{"$nulls":4},"Κυριακή"]
[{"$nulls":4},"Σύνολο εβδομαδιαίων ωρών",{"$f":"SUBTOTAL(109,Νοέμβριος[Εβδομάδα 1])","v":{"v":0,"d":"0.0"}},{"$f":"SUBTOTAL(109,Νοέμβριος[Υπερωρίες])","v":{"v":0,"d":"0.0"}},{"$f":"SUBTOTAL(109,Νοέμβριος[Εβδομάδα 2])","v":{"v":0,"d":"0.0"}},{"$f":"SUBTOTAL(109,Νοέμβριος[[Υπερωρίες ]])","v":{"v":0,"d":"0.0"}},{"$f":"SUBTOTAL(109,Νοέμβριος[Εβδομάδα 3])","v":{"v":0,"d":"0.0"}},{"$f":"SUBTOTAL(109,Νοέμβριος[[Υπερωρίες  ]])","v":{"v":0,"d":"0.0"}},{"$f":"SUBTOTAL(109,Νοέμβριος[Εβδομάδα 4])","v":{"v":0,"d":"0.0"}},{"$f":"SUBTOTAL(109,Νοέμβριος[[Υπερωρίες    ]])","v":{"v":0,"d":"0.0"}},{"$f":"SUBTOTAL(109,Νοέμβριος[Εβδομάδα 5])","v":{"v":0,"d":"0.0"}},{"$f":"SUBTOTAL(109,Νοέμβριος[[Υπερωρίες     ]])","v":{"v":0,"d":"0.0"}}]
["Οι συνολικές κανονικές ώρες Νοεμβρίου στο κελί F121 και οι συνολικές ώρες υπερωριών Νοεμβρίου στο κελί I121 υπολογίζονται αυτόματα. Η επόμενη οδηγία βρίσκεται στο κελί A123.",{"$nulls":3},{"$f":"LEFT(Νοέμβριος[[#Headers],[Νοέμβριος]],3)&\".\"&\" σύνολο: Κανονικές ώρες\"","v":"Νοέ. σύνολο: Κανονικές ώρες"},{"$f":"SUM(Νοέμβριος[Εβδομάδα 1],Νοέμβριος[Εβδομάδα 2],Νοέμβριος[Εβδομάδα 3],Νοέμβριος[Εβδομάδα 4],Νοέμβριος[Εβδομάδα 5])","v":{"v":0,"d":"0.0"}},{"$f":"LEFT(Νοέμβριος[[#Headers],[Νοέμβριος]],3)&\".\"&\" σύνολο: Υπερωρίες\"","v":"Νοέ. σύνολο: Υπερωρίες"},null,{"$f":"SUM(Νοέμβριος[Υπερωρίες],Νοέμβριος[[Υπερωρίες ]],Νοέμβριος[[Υπερωρίες  ]],Νοέμβριος[[Υπερωρίες    ]],Νοέμβριος[[Υπερωρίες     ]])","v":{"v":0,"d":"0.0"}}]
[]
["Εισαγάγετε τις κανονικές ώρες και τις ώρες υπερωριών για τον Δεκέμβριος στον πίνακα που ξεκινά στο κελί E123. Η επόμενη οδηγία βρίσκεται στο κελί A132.",{"$nulls":3},"Δεκέμβριος","Εβδομάδα 1","Υπερωρίες","Εβδομάδα 2","Υπερωρίες ","Εβδομάδα 3","Υπερωρίες  ","Εβδομάδα 4","Υπερωρίες   ","Εβδομάδα 5","Υπερωρίες    "]
[{"$nulls":4},"Δευτέρα"]
[{"$nulls":4},"Τρίτη"]
[{"$nulls":4},"Τετάρτη"]
[{"$nulls":4},"Πέμπτη"]
[{"$nulls":4},"Παρασκευή"]
[{"$nulls":4},"Σάββατο"]
[{"$nulls":4},"Κυριακή"]
[{"$nulls":4},"Σύνολο εβδομαδιαίων ωρών",{"$f":"SUBTOTAL(109,Δεκέμβριος[Εβδομάδα 1])","v":{"v":0,"d":"0.0"}},{"$f":"SUBTOTAL(109,Δεκέμβριος[Υπερωρίες])","v":{"v":0,"d":"0.0"}},{"$f":"SUBTOTAL(109,Δεκέμβριος[Εβδομάδα 2])","v":{"v":0,"d":"0.0"}},{"$f":"SUBTOTAL(109,Δεκέμβριος[[Υπερωρίες ]])","v":{"v":0,"d":"0.0"}},{"$f":"SUBTOTAL(109,Δεκέμβριος[Εβδομάδα 3])","v":{"v":0,"d":"0.0"}},{"$f":"SUBTOTAL(109,Δεκέμβριος[[Υπερωρίες  ]])","v":{"v":0,"d":"0.0"}},{"$f":"SUBTOTAL(109,Δεκέμβριος[Εβδομάδα 4])","v":{"v":0,"d":"0.0"}},{"$f":"SUBTOTAL(109,Δεκέμβριος[[Υπερωρίες   ]])","v":{"v":0,"d":"0.0"}},{"$f":"SUBTOTAL(109,Δεκέμβριος[Εβδομάδα 5])","v":{"v":0,"d":"0.0"}},{"$f":"SUBTOTAL(109,Δεκέμβριος[[Υπερωρίες    ]])","v":{"v":0,"d":"0.0"}}]
["Οι συνολικές κανονικές ώρες Δεκεμβρίου στο κελί F132 και οι συνολικές ώρες υπερωριών Δεκεμβρίου στο κελί I132 υπολογίζονται αυτόματα.",{"$nulls":3},{"$f":"LEFT(Δεκέμβριος[[#Headers],[Δεκέμβριος]],3)&\".\"&\" σύνολο: Κανονικές ώρες\"","v":"Δεκ. σύνολο: Κανονικές ώρες"},{"$f":"SUM(Δεκέμβριος[Εβδομάδα 1],Δεκέμβριος[Εβδομάδα 2],Δεκέμβριος[Εβδομάδα 3],Δεκέμβριος[Εβδομάδα 4],Δεκέμβριος[Εβδομάδα 5])","v":{"v":0,"d":"0.0"}},{"$f":"LEFT(Δεκέμβριος[[#Headers],[Δεκέμβριος]],3)&\".\"&\" σύνολο: Υπερωρίες\"","v":"Δεκ. σύνολο: Υπερωρίες"},null,{"$f":"SUM(G124:G130,I124:I130,K124:K130,M124:M130,O124:O130)","v":{"v":0,"d":"0.0"}}]